fUSD/lending_fUSD_20260217
["ID","MTS","AMOUNT","RATE_DAILY","PERIOD"]
[405781016,1771302640847,-500.0,0.00013698,2]
[405781017,1771302640856,-500.0,0.00013698,2]
[405781018,1771302640865,-500.0,0.00013698,2]
[405781019,1771302640874,-1125.16,0.00013698,2]
[405781020,1771302640883,-1125.16,0.00013698,2]
[405781021,1771302640892,-1125.16,0.00013698,2]
[405781022,1771302640903,-1125.16,0.00013698,2]
[405781023,1771302640914,-1125.16,0.00013698,2]
[405781024,1771302640923,-1125.16,0.00013698,2]
[405781025,1771302640935,-1125.16,0.00013698,2]
[405781026,1771302640951,-1125.16,0.00013698,2]
[405781027,1771302640961,-1125.16,0.00013698,2]
[405781028,1771302640971,-1125.16,0.00013698,2]
[405781029,1771302640984,-1125.16,0.00013698,2]
[405781030,1771302640994,-1125.16,0.00013698,2]
[405781031,1771302641004,-1125.16,0.00013698,2]
[405781032,1771302641013,-1125.16,0.00013698,2]
[405781033,1771302641022,-1125.16,0.00013698,2]
[405781034,1771302641032,-1125.16,0.00013698,2]
[405781035,1771302641051,-1125.16,0.00013698,2]
[405781036,1771302641073,-1125.16,0.00013698,2]
[405781037,1771302641091,-1125.16,0.00013698,2]
[405781038,1771302641103,-456.05800986,0.00013698,2]
[405781039,1771302641118,-500.0,0.00013698,2]
[405781040,1771302641132,-500.0,0.00013698,2]
[405781041,1771302641148,-500.0,0.00013698,2]
[405781042,1771302641164,-500.0,0.00013698,2]
[405781043,1771302641180,-500.0,0.00013698,2]
[405781044,1771302641195,-500.0,0.00013698,2]
[405781045,1771302641209,-500.0,0.00013698,2]
[405781046,1771302641221,-500.0,0.00013698,2]
[405781047,1771302641235,-500.0,0.00013698,2]
[405781048,1771302641250,-500.0,0.00013698,2]
[405781049,1771302641264,-430.55674509,0.00013698,2]
[405781050,1771302641280,-500.0,0.00013698,2]
[405781051,1771302641295,-500.0,0.00013698,2]
[405781052,1771302641310,-500.0,0.00013698,2]
[405781053,1771302641323,-500.0,0.00013698,2]
[405781054,1771302641338,-500.0,0.00013698,2]
[405781055,1771302641352,-500.0,0.00013698,2]
[405781056,1771302641366,-500.0,0.00013698,2]
[405781057,1771302641381,-500.0,0.00013698,2]
[405781058,1771302641394,-500.0,0.00013698,2]
[405781059,1771302641408,-500.0,0.00013698,2]
[405781060,1771302641424,-500.0,0.00013698,2]
[405781061,1771302641438,-500.0,0.00013698,2]
[405781062,1771302641451,-500.0,0.00013698,2]
[405781063,1771302641464,-500.0,0.00013698,2]
[405781064,1771302641475,-500.0,0.00013698,2]
[405781065,1771302641488,-500.0,0.00013698,2]
[405781066,1771302641502,-503.24510855,0.00013698,2]
[405781067,1771302641518,-500.0,0.00013698,2]
[405781068,1771302641528,-500.0,0.00013698,2]
[405781069,1771302641539,-500.0,0.00013698,2]
[405781070,1771302641550,-205.75338066,0.00013698,2]
[405781071,1771302641564,-500.0,0.00013698,2]
[405781072,1771302641580,-500.0,0.00013698,2]
[405781073,1771302641592,-400.27334963,0.00013698,2]
[405781074,1771302641603,-915.21,0.00013698,2]
[405781075,1771302641614,-915.21,0.00013698,2]
[405781076,1771302641626,-915.21,0.00013698,2]
[405781077,1771302641640,-915.21,0.00013698,2]
[405781078,1771302641651,-915.21,0.00013698,2]
[405781079,1771302641664,-915.21,0.00013698,2]
[405781080,1771302641677,-915.21,0.00013698,2]
[405781081,1771302641690,-915.21,0.00013698,2]
[405781082,1771302641702,-915.21,0.00013698,2]
[405781083,1771302641715,-915.21,0.00013698,2]
[405781084,1771302641727,-915.21,0.00013698,2]
[405781085,1771302641745,-915.21,0.00013698,2]
[405781086,1771302641758,-915.21,0.00013698,2]
[405781087,1771302641771,-915.21,0.00013698,2]
[405781088,1771302641784,-915.21,0.00013698,2]
[405781089,1771302641796,-915.21,0.00013698,2]
[405781090,1771302641809,-500.0,0.00013698,2]
[405781091,1771302641822,-500.0,0.00013698,2]
[405781092,1771302641835,-500.0,0.00013698,2]
[405781093,1771302641848,-500.0,0.00013698,2]
[405781094,1771302641864,-500.0,0.00013698,2]
[405781095,1771302641877,-500.0,0.00013698,2]
[405781096,1771302641890,-500.0,0.00013698,2]
[405781097,1771302641902,-500.0,0.00013698,2]
[405781098,1771302641917,-500.0,0.00013698,2]
[405781099,1771302641930,-500.0,0.00013698,2]
[405781100,1771302641942,-500.0,0.00013698,2]
[405781101,1771302641956,-500.0,0.00013698,2]
[405781102,1771302641969,-500.0,0.00013698,2]
[405781103,1771302641983,-500.0,0.00013698,2]
[405781104,1771302641996,-500.0,0.00013698,2]
[405781105,1771302642009,-500.0,0.00013698,2]
[405781106,1771302642021,-500.0,0.00013698,2]
[405781107,1771302642034,-500.0,0.00013698,2]
[405781108,1771302642047,-500.0,0.00013698,2]
[405781109,1771302642059,-307.44205355,0.00013698,2]
[405781110,1771302642071,-500.0,0.00013698,2]
[405781111,1771302642084,-500.0,0.00013698,2]
[405781112,1771302642096,-500.0,0.00013698,2]
[405781113,1771302642109,-500.0,0.00013698,2]
[405781114,1771302642121,-500.0,0.00013698,2]
[405781115,1771302642133,-500.0,0.00013698,2]
[405781116,1771302642145,-500.0,0.00013698,2]
[405781117,1771302642158,-500.0,0.00013698,2]
[405781118,1771302642171,-500.0,0.00013698,2]
[405781119,1771302642184,-500.0,0.00013698,2]
[405781120,1771302642197,-500.0,0.00013698,2]
[405781121,1771302642210,-500.0,0.00013698,2]
[405781122,1771302642222,-500.0,0.00013698,2]
[405781123,1771302642235,-500.0,0.00013698,2]
[405781124,1771302642248,-500.0,0.00013698,2]
[405781125,1771302642260,-500.0,0.00013698,2]
[405781126,1771302642273,-500.0,0.00013698,2]
[405781127,1771302642286,-500.0,0.00013698,2]
[405781128,1771302642299,-500.0,0.00013698,2]
[405781129,1771302642312,-500.0,0.00013698,2]
[405781133,1771302642325,-500.0,0.00013698,2]
[405781136,1771302642337,-500.0,0.00013698,2]
[405781139,1771302642350,-500.0,0.00013698,2]
[405781140,1771302642362,-500.0,0.00013698,2]
[405781141,1771302642375,-500.0,0.00013698,2]
[405781142,1771302642388,-500.0,0.00013698,2]
[405781143,1771302642400,-500.0,0.00013698,2]
[405781144,1771302642414,-500.0,0.00013698,2]
[405781145,1771302642427,-500.0,0.00013698,2]
[405781146,1771302642439,-500.0,0.00013698,2]
[405781147,1771302642451,-500.0,0.00013698,2]
[405781148,1771302642464,-500.0,0.00013698,2]
[405781149,1771302642478,-500.0,0.00013698,2]
[405781150,1771302642490,-500.0,0.00013698,2]
[405781151,1771302642504,-500.0,0.00013698,2]
[405781152,1771302642517,-500.0,0.00013698,2]
[405781153,1771302642530,-500.0,0.00013698,2]
[405781154,1771302642542,-500.0,0.00013698,2]
[405781155,1771302642555,-500.0,0.00013698,2]
[405781156,1771302642568,-500.0,0.00013698,2]
[405781157,1771302642581,-500.0,0.00013698,2]
[405781158,1771302642593,-500.0,0.00013698,2]
[405781161,1771302642606,-500.0,0.00013698,2]
[405781163,1771302642619,-500.0,0.00013698,2]
[405781164,1771302642631,-500.0,0.00013698,2]
[405781165,1771302642643,-500.0,0.00013698,2]
[405781166,1771302642656,-500.0,0.00013698,2]
[405781168,1771302642669,-500.0,0.00013698,2]
[405781170,1771302642681,-500.0,0.00013698,2]
[405781172,1771302642694,-500.0,0.00013698,2]
[405781175,1771302642708,-500.0,0.00013698,2]
[405781178,1771302642721,-522.2154278,0.00013698,2]
[405781181,1771302642733,-500.0,0.00013698,2]
[405781183,1771302642747,-500.0,0.00013698,2]
[405781185,1771302642760,-500.0,0.00013698,2]
[405781188,1771302642773,-500.0,0.00013698,2]
[405781189,1771302642786,-500.0,0.00013698,2]
[405781190,1771302642799,-500.0,0.00013698,2]
[405781191,1771302642811,-500.0,0.00013698,2]
[405781192,1771302642824,-500.0,0.00013698,2]
[405781193,1771302642836,-500.0,0.00013698,2]
[405781194,1771302642849,-500.0,0.00013698,2]
[405781195,1771302642861,-500.0,0.00013698,2]
[405781196,1771302642873,-500.0,0.00013698,2]
[405781197,1771302642885,-500.0,0.00013698,2]
[405781198,1771302642897,-500.0,0.00013698,2]
[405781199,1771302642912,-500.0,0.00013698,2]
[405781200,1771302642924,-500.0,0.00013698,2]
[405781201,1771302642936,-506.79858148,0.00013698,2]
[405781202,1771302642949,-535.55684817,0.00013698,2]
[405781203,1771302642961,-500.0,0.00013698,2]
[405781204,1771302642974,-500.0,0.00013698,2]
[405781205,1771302642987,-500.0,0.00013698,2]
[405781206,1771302642999,-639.90682726,0.00013698,2]
[405781207,1771302643011,-712.99,0.00013699,2]
[405781208,1771302643024,-183.74,0.00013699,2]
[405781209,1771302643036,-24864.33084881,0.000137,2]
[405781210,1771302643048,-22024.54,0.000137,2]
[405781211,1771302643061,-22024.54,0.000137,2]
[405781212,1771302643072,-3000.0,0.00013712,2]
[405781213,1771302643084,-7646.21367114,0.00013722,2]
[405781214,1771302643097,-915.21,0.00013999,2]
[405781215,1771302643109,-500.0,0.00013999,2]
[405781216,1771302643120,-846.3153877,0.0001426,2]
[405781217,1771302643133,-7658.84032483,0.0001439,2]
[405781218,1771302643144,-500.0,0.00014399,2]
[405781219,1771302643157,-161.76553767,0.00014399,2]
[405781220,1771302643169,-500.0,0.00014399,2]
[405781221,1771302643181,-500.0,0.00014399,2]
[405781222,1771302643193,-500.0,0.00014399,2]
[405781223,1771302643205,-500.0,0.00014399,2]
[405781224,1771302643216,-151.0,0.00014634,2]
[405781225,1771302643228,-151.0,0.00014634,2]
[405781226,1771302643240,-151.0,0.00014634,2]
[405781227,1771302643251,-24864.33084881,0.0001475,2]
[405781228,1771302643264,-7646.21367114,0.00014766,2]
[405781229,1771302643276,-9035.0,0.00014877,2]
[405781230,1771302643288,-679.08,0.00014899,2]
[405781231,1771302643300,-679.08,0.00014899,2]
[405781232,1771302643311,-679.08,0.00014899,2]
[405781233,1771302643324,-679.08,0.00014899,2]
[405781234,1771302643336,-679.22619195,0.00014899,2]
[405781235,1771302643349,-1125.16,0.00014899,2]
[405781236,1771302643361,-1125.16,0.00014899,2]
[405781237,1771302643373,-1125.16,0.00014899,2]
[405781238,1771302643385,-1125.16,0.00014899,2]
[405781239,1771302643397,-1125.29508189,0.00014899,2]
[405781240,1771302643408,-500.0,0.00014915,2]
[405781241,1771302643421,-500.0,0.00014915,2]
[405781242,1771302643434,-157.0,0.00014915,2]
[405781243,1771302643447,-500.0,0.00014915,2]
[405781244,1771302643459,-500.0,0.00014915,2]
[405781245,1771302643471,-363.0,0.00014915,2]
[405781246,1771302643482,-250.0,0.00015,2]
[405781247,1771302643494,-2055.50045313,0.00015,2]
[405781248,1771302643506,-8002.23365242,0.00015,2]
[405781249,1771302643518,-418.83903334,0.00015,2]
[405781250,1771302643530,-160.0,0.00015068,4]
[405781251,1771302643541,-160.0,0.00015256,4]
[405781252,1771302643553,-1517.64,0.000153,2]
[405781253,1771302643565,-578.20924308,0.00015348,2]
[405781254,1771302643576,-151.0,0.00015348,2]
[405781255,1771302643588,-1421.82630279,0.00015348,2]
[405781256,1771302643601,-151.0,0.00015348,2]
[405781257,1771302643612,-209.40437684,0.00015348,2]
[405781258,1771302643624,-3000.0,0.00015348,2]
[405781259,1771302643635,-151.0,0.00015348,2]
[405781260,1771302643647,-3000.0,0.00015348,2]
[405781261,1771302643658,-151.0,0.00015348,2]
[405781262,1771302643670,-3000.0,0.00015348,2]
[405781263,1771302643683,-151.0,0.00015348,2]
[405781264,1771302643694,-3000.0,0.00015348,2]
[405781265,1771302643706,-160.0,0.00015348,2]
[405781266,1771302643717,-151.0,0.00015348,2]
[405781267,1771302643729,-151.0,0.00015348,2]
[405781268,1771302643740,-3000.0,0.00015348,2]
[405781269,1771302643752,-261.90795033,0.00015348,2]
[405781270,1771302643763,-3000.0,0.00015348,2]
[405781271,1771302643775,-3000.0,0.00015348,2]
[405781272,1771302643786,-500.0,0.00015348,2]
[405781273,1771302643797,-3099.28707761,0.00015348,2]
[405781274,1771302643809,-500.0,0.00015348,2]
[405781275,1771302643820,-586.96513288,0.00015348,2]
[405781276,1771302643831,-200.0,0.00015348,2]
[405781277,1771302643843,-721.12765535,0.00015348,2]
[405781278,1771302643855,-177.7218892,0.00015348,2]
[405781279,1771302643866,-151.12957794,0.00015348,2]
[405781280,1771302643878,-693.3919763,0.00015348,2]
[405781281,1771302643890,-250.0,0.00015348,2]
[405781282,1771302643902,-250.0,0.00015348,2]
[405781283,1771302643918,-250.0,0.00015348,2]
[405781284,1771302643929,-250.0,0.00015348,2]
[405781285,1771302643941,-302.70619241,0.00015348,2]
[405781286,1771302643953,-250.0,0.00015348,2]
[405781287,1771302644440,-250.0,0.00015348,2]
[405781288,1771302644475,-250.0,0.00015348,2]
[405781289,1771302644508,-250.0,0.00015348,2]
[405781290,1771302644517,-254.77802588,0.00015348,2]
[405781291,1771302644526,-253.83621088,0.00015348,2]
[405781292,1771302644535,-1000.0,0.00015348,2]
[405781293,1771302644544,-1000.0,0.00015348,2]
[405781294,1771302644553,-526.36214318,0.00015348,2]
[405781295,1771302644562,-151.0,0.00015348,2]
[405781296,1771302644571,-3000.0,0.00015348,2]
[405781297,1771302644580,-3000.0,0.00015348,2]
[405781298,1771302644589,-1070.81608438,0.00015348,2]
[405781299,1771302644599,-250.0,0.00015348,2]
[405781300,1771302644609,-250.0,0.00015348,2]
[405781301,1771302644619,-250.0,0.00015348,2]
[405781302,1771302644628,-250.0,0.00015348,2]
[405781303,1771302644637,-250.0,0.00015348,2]
[405781304,1771302644646,-250.0,0.00015348,2]
[405781305,1771302644655,-299.40346672,0.00015348,2]
[405781306,1771302644665,-250.0,0.00015348,2]
[405781307,1771302644673,-250.0,0.00015348,2]
[405781308,1771302644682,-250.0,0.00015348,2]
[405781309,1771302644692,-250.0,0.00015348,2]
[405781310,1771302644702,-250.0,0.00015348,2]
[405781311,1771302644711,-250.0,0.00015348,2]
[405781312,1771302644720,-250.0,0.00015348,2]
[405781313,1771302644729,-250.0,0.00015348,2]
[405781314,1771302644738,-250.0,0.00015348,2]
[405781315,1771302644747,-250.0,0.00015348,2]
[405781316,1771302644756,-250.0,0.00015348,2]
[405781317,1771302644765,-250.0,0.00015348,2]
[405781318,1771302644774,-250.0,0.00015348,2]
[405781319,1771302644783,-250.0,0.00015348,2]
[405781320,1771302644792,-250.0,0.00015348,2]
[405781321,1771302644801,-250.0,0.00015348,2]
[405781322,1771302644811,-250.0,0.00015348,2]
[405781323,1771302644820,-250.0,0.00015348,2]
[405781324,1771302644829,-250.0,0.00015348,2]
[405781325,1771302644838,-250.0,0.00015348,2]
[405781326,1771302644847,-250.0,0.00015348,2]
[405781327,1771302644856,-279.55615727,0.00015348,2]
[405781328,1771302644865,-250.0,0.00015348,2]
[405781329,1771302644873,-250.0,0.00015348,2]
[405781330,1771302644882,-162.380719,0.00015348,2]
[405781331,1771302644892,-250.0,0.00015348,2]
[405781332,1771302644900,-250.0,0.00015348,2]
[405781333,1771302644913,-250.0,0.00015348,2]
[405781334,1771302644922,-250.0,0.00015348,2]
[405781335,1771302644931,-250.0,0.00015348,2]
[405781336,1771302644940,-250.0,0.00015348,2]
[405781337,1771302644950,-250.0,0.00015348,2]
[405781338,1771302644959,-250.0,0.00015348,2]
[405781339,1771302644968,-509.61038486,0.000154,2]
[405781340,1771302644977,-719.04747942,0.00015403,2]
[405781341,1771302644986,-151.0,0.00015403,2]
[405781342,1771302644996,-915.21,0.00015408,2]
[405781343,1771302645005,-286.9609652,0.00015408,2]
[405781344,1771302645014,-745.65223616,0.00015458,2]
[405781345,1771302645023,-151.0,0.00015458,2]
[405781346,1771302645032,-773.2413689,0.00015513,2]
[405781347,1771302645041,-151.0,0.00015513,2]
[405781348,1771302645050,-584.0,0.00015547,2]
[405781349,1771302645060,-801.85129955,0.00015568,2]
[405781350,1771302645068,-151.0,0.00015568,2]
[405781351,1771302645077,-831.51979763,0.00015623,2]
[405781352,1771302645087,-151.0,0.00015623,2]
[405781353,1771302645097,-862.28603014,0.00015678,2]
[405781354,1771302645106,-151.0,0.00015678,2]
[405781355,1771302645115,-500.0,0.0001568,2]
[405781356,1771302645125,-894.19061326,0.00015733,2]
[405781357,1771302645134,-151.0,0.00015733,2]
[405781358,1771302645143,-500.0,0.00015737,2]
[405781359,1771302645152,-194.0,0.00015737,2]
[405781360,1771302645161,-500.0,0.00015737,2]
[405781361,1771302645170,-317.0,0.00015737,2]
[405781362,1771302645179,-927.27566595,0.00015788,2]
[405781363,1771302645188,-151.0,0.00015788,2]
[405781364,1771302645198,-24864.33084881,0.000158,2]
[405781365,1771302645207,-2245.73805852,0.00015807,2]
[405781366,1771302645216,-7646.21367114,0.00015811,2]
[405781367,1771302645225,-961.58486559,0.00015843,2]
[405781368,1771302645235,-151.0,0.00015843,2]
[405781369,1771302645244,-217.15233878,0.00015896,2]
[405781370,1771302645254,-200.0,0.00015896,2]
[405781371,1771302645262,-997.16350561,0.00015898,2]
[405781372,1771302645271,-151.0,0.00015898,2]
[405781373,1771302645280,-151.61045429,0.000159,2]
[405781374,1771302645289,-151.0,0.00015953,2]
[405781375,1771302645299,-5000.0,0.0001596,2]
[405781376,1771302645308,-303.26122484,0.00016,2]
[405781377,1771302645318,-151.0,0.00016008,2]
[405781378,1771302645328,-151.0,0.00016063,2]
[405781379,1771302645337,-7910.59,0.00016116,2]
[405781380,1771302645347,-267.05598539,0.00016118,2]
[405781381,1771302645356,-315.90732778,0.0001617,2]
[405781382,1771302645365,-87373.52489105,0.000162,5]
[405781383,1771302645374,-160.0,0.00016201,2]
[405781384,1771302645383,-173.57638878,0.00016201,2]
[405781385,1771302645392,-350.0,0.00016287,2]
[405781386,1771302645402,-550.98049433,0.00016337,7]
[405781387,1771302645413,-200.0,0.0001634,2]
[405781388,1771302645422,-9251.0,0.00016365,2]
[405781389,1771302645431,-297.18074641,0.00016444,2]
[405781390,1771302645441,-463.0,0.00016559,2]
[405781391,1771302645450,-545.0,0.00016559,2]
[405781392,1771302645459,-159.42,0.00016712,2]
[405781393,1771302645468,-160.32510575,0.00016717,2]
[405781394,1771302645478,-168.3888056,0.00016717,2]
[405781395,1771302645488,-3701.0,0.000168,2]
[405781396,1771302645497,-160.57318335,0.00016807,2]
[405781397,1771302645506,-9917.64356668,0.00016816,2]
[405781398,1771302645515,-24864.33084881,0.0001685,2]
[405781399,1771302645524,-7646.21367114,0.00016855,2]
[405781400,1771302645534,-241.70774661,0.00016885,2]
[405781401,1771302645543,-151.0,0.00016997,2]
[405781402,1771302645551,-300.0,0.00017,2]
[405781403,1771302645560,-160.0,0.00017,7]
[405781404,1771302645570,-722096.52522804,0.00017,2]
[405781405,1771302645579,-233.0,0.00017027,2]
[405781406,1771302645588,-350.0,0.00017146,2]
[405781407,1771302645597,-1000.0,0.00017197,2]
[405781408,1771302645606,-1000.0,0.00017197,2]
[405781409,1771302645615,-1000.0,0.00017197,2]
[405781410,1771302645624,-1000.0,0.00017197,2]
[405781411,1771302645633,-1000.0,0.00017197,2]
[405781412,1771302645642,-502.0,0.000173,2]
[405781413,1771302645651,-5016.38407619,0.0001764,2]
[405781414,1771302645661,-784.32813885,0.000177,2]
[405781415,1771302645671,-403.0,0.000177,5]
[405781416,1771302645680,-25104.834229,0.00017761,7]
[405781417,1771302645688,-6203.302944,0.00017761,7]
[405781418,1771302645698,-350.0,0.00017779,2]
[405781419,1771302645707,-444.64,0.00017808,2]
[405781420,1771302645716,-500.0,0.00017808,2]
[405781421,1771302645725,-328.71452673,0.00017808,2]
[405781422,1771302645734,-500.0,0.00017808,2]
[405781423,1771302645743,-500.0,0.00017808,2]
[405781424,1771302645753,-500.0,0.00017808,2]
[405781426,1771302645762,-500.0,0.00017808,2]
[405781428,1771302645771,-500.0,0.00017808,2]
[405781430,1771302645780,-500.0,0.00017808,2]
[405781432,1771302645789,-800.0,0.00017808,2]
[405781433,1771302645799,-250.0,0.00017808,20]
[405781435,1771302645808,-250.0,0.00017808,20]
[405781437,1771302645817,-250.0,0.00017808,20]
[405781438,1771302645826,-250.0,0.00017808,20]
[405781439,1771302645835,-250.0,0.00017808,20]
[405781440,1771302645844,-250.0,0.00017808,20]
[405781441,1771302645854,-250.0,0.00017808,20]
[405781442,1771302645863,-250.0,0.00017808,20]
[405781443,1771302645872,-250.0,0.00017808,20]
[405781444,1771302645881,-250.0,0.00017808,20]
[405781445,1771302645890,-250.0,0.00017808,20]
[405781446,1771302645900,-250.0,0.00017808,20]
[405781447,1771302645914,-250.0,0.00017808,20]
[405781448,1771302645924,-250.0,0.00017808,20]
[405781449,1771302645933,-250.0,0.00017808,20]
[405781450,1771302645942,-211.316222,0.00017808,20]
[405781451,1771302645953,-1394.36444,0.0001782,2]
[405781452,1771302645963,-1394.36444,0.0001782,2]
[405781453,1771302645973,-1000.0,0.00017836,2]
[405781454,1771302645983,-200.0,0.00017855,2]
[405781455,1771302645991,-200.0,0.00017856,2]
[405781456,1771302646000,-200.0,0.00017856,2]
[405781457,1771302646010,-1004.12697823,0.0001786,2]
[405781458,1771302646019,-500.0,0.00017899,2]
[405781459,1771302646028,-500.0,0.00017899,2]
[405781460,1771302646037,-915.21,0.00017899,2]
[405781461,1771302646046,-500.0,0.00017899,2]
[405781462,1771302646055,-500.0,0.00017899,2]
[405781463,1771302646064,-500.0,0.00017899,2]
[405781464,1771302646073,-500.0,0.00017899,2]
[405781465,1771302646082,-7646.21367114,0.000179,2]
[405781466,1771302646091,-1488.83065607,0.000179,2]
[405781467,1771302646101,-5008.1800114,0.000179,3]
[405781468,1771302646111,-24864.33084881,0.000179,2]
[405781469,1771302646120,-2555.4951848,0.000179,5]
[405781470,1771302646129,-227.20890354,0.000179,2]
[405781471,1771302646139,-15537.82466557,0.000179,2]
[405781472,1771302646148,-5514.56110274,0.000179,2]
[405781473,1771302646157,-350.0,0.00017907,2]
[405781474,1771302646169,-763.92788936,0.00017989,2]
[405781475,1771302646179,-500.0,0.00017989,2]
[405781476,1771302646188,-500.0,0.00017989,2]
[405781477,1771302646197,-197.6651859,0.00017989,2]
[405781478,1771302646206,-500.0,0.00017989,2]
[405781479,1771302646215,-505.24249427,0.00017989,2]
[405781480,1771302646224,-225.73403839,0.00017997,2]
[405781481,1771302646233,-20499.10730416,0.00017999,4]
[405781482,1771302646242,-131604.71941823,0.00017999,2]
[405781483,1771302646251,-92123.30359276,0.00017999,4]
[405781484,1771302646260,-511.5660924,0.00017999,2]
[405781485,1771302646269,-500.0,0.00017999,2]
[405781486,1771302646279,-538.27974596,0.00017999,2]
[405781487,1771302646289,-502.75243677,0.00017999,2]
[405781488,1771302646298,-300.0,0.00017999,2]
[405781489,1771302646306,-300.0,0.00017999,2]
[405781490,1771302646315,-915.21,0.00017999,2]
[405781491,1771302646324,-915.21,0.00017999,2]
[405781492,1771302646333,-915.21,0.00017999,2]
[405781493,1771302646342,-915.21,0.00017999,2]
[405781494,1771302646351,-915.2263384,0.00017999,2]
[405781495,1771302646360,-500.0,0.00017999,2]
[405781496,1771302646369,-500.0,0.00017999,2]
[405781497,1771302646378,-500.0,0.00017999,2]
[405781498,1771302646387,-500.0,0.00017999,2]
[405781499,1771302646396,-388.47570654,0.00017999,2]
[405781500,1771302646405,-235.55627713,0.00017999,2]
[405781501,1771302646414,-508.20125622,0.00017999,2]
[405781502,1771302646423,-300.0,0.00017999,2]
[405781503,1771302646432,-666.0,0.00017999,2]
[405781504,1771302646442,-300.0,0.00017999,2]
[405781505,1771302646451,-666.0,0.00017999,2]
[405781506,1771302646460,-300.0,0.00017999,2]
[405781507,1771302646469,-23598.10797836,0.00017999,2]
[405781508,1771302646478,-4996836.80363163,0.00018,2]
[405781509,1771302647017,6010.23139257,8.381e-05,2]
[405781510,1771302647038,10000.01,8.381e-05,2]
[405781511,1771302647058,10000.01,8.381e-05,2]
[405781512,1771302647077,3265.92860743,8.381e-05,2]
[405781513,1771302647162,-8811.63573528,0.00018,2]
[405781514,1771302647172,-8947.21879473,0.00018,2]
[405781515,1771302647184,-8943.78386462,0.00018,2]
[405781516,1771302647194,-9077.54866152,0.00018,2]
[405781517,1771302647261,-6083433.89604282,0.00018,2]
[405781518,1771302647270,-772.26,0.00018,7]
[405781519,1771302647279,-3931.2843945,0.00018,2]
[405781520,1771302647289,-200.0,0.00018,2]
[405781521,1771302647298,-151.82749142,0.00018,2]
[405781522,1771302647308,-154.37734561,0.00018,2]
[405781523,1771302647575,-200.0,0.00018,2]
[405781524,1771302647585,-2392918.53662669,0.00018,2]
[405781525,1771302647790,-6883.58478781,0.00018,2]
[405781526,1771302647813,-398.19999999,0.00018,2]
[405781527,1771302648005,-1002.1425719,0.00018,2]
[405781528,1771302668813,4459.687653,7.945e-05,2]
[405781529,1771302697059,500.0,8.299e-05,2]
[405781530,1771302717286,6500.0,8.299e-05,2]
[405781531,1771302781203,300.0,8.298e-05,2]
[405781532,1771302781507,300.0,8.298e-05,2]
[405781533,1771302782807,150.0,8.298e-05,2]
[405781534,1771302811477,-3150.0,8.299e-05,2]
[405781535,1771302851686,500.0,8.298e-05,2]
[405781536,1771302851790,500.0,8.298e-05,2]
[405781537,1771302851890,274.38532232,8.298e-05,2]
[405781538,1771302858494,500.0,8.298e-05,2]
[405781539,1771302858544,305.28712047,8.298e-05,2]
[405781540,1771302858597,500.0,8.298e-05,2]
[405781541,1771302858655,500.0,8.298e-05,2]
[405781542,1771302858704,500.0,8.298e-05,2]
[405781543,1771302858757,500.0,8.298e-05,2]
[405781544,1771302858806,500.0,8.298e-05,2]